bitfinex-derivatives/quotes_SOLF0:USTF0_20250730
["timestamp","ask_amount","ask_price","bid_price","bid_amount"]
[1753863258271,3.21,180.12,180.11,2.98]
[1753863258573,3.21,180.12,180.07,2.72721375]
[1753863258574,3.21,180.13,180.08,2.98]
[1753863258871,3.21,180.11,180.08,2.98]
[1753863259969,3.21,180.1,180.09,2.98]
[1753863260174,3.21,180.14,180.09,2.98]
[1753863261068,3.21,180.14,180.13,2.98]
[1753863261472,3.08,180.15,180.14,3.22]
[1753863264377,3.08,180.17,180.11,3.22]
[1753863264580,3.08,180.15,180.11,3.22]
[1753863264774,5.5506,180.17,180.11,3.22]
[1753863264973,2.72721375,180.19,180.14,3.22]
[1753863265178,3.08,180.17,180.14,3.22]
[1753863265480,3.08,180.16,180.15,3.22]
[1753863265676,3.08,180.18,180.11,3.22]
[1753863265977,3.08,180.18,180.13,5.5515]
[1753863266171,5.80721375,180.18,180.12,3.22]
[1753863266371,3.08,180.17,180.12,3.22]
[1753863267485,3.08,180.14,180.12,3.22]
[1753863267871,3.08,180.14,180.1,8.7725]
[1753863268076,3.08,180.14,180.11,8.7724]
[1753863268377,8.27821375,180.16,180.12,3.22]
[1753863268576,3.08,180.15,180.12,3.22]
[1753863268876,8.6312,180.15,180.12,3.22]
[1753863269075,5.5512,180.15,180.12,3.22]
[1753863269282,3.08,180.13,180.12,3.22]
[1753863269482,8.27811375,180.16,180.12,3.22]
[1753863269682,3.08,180.14,180.13,3.22]
[1753863271484,3.08,180.14,180.11,5.5521]
[1753863271673,5.5512,180.15,180.12,3.22]
[1753863271880,3.08,180.13,180.12,3.22]
[1753863272784,3.08,180.13,180.06,2.72721375]
[1753863272988,3.08,180.13,180.1,3.22]
[1753863273179,3.08,180.11,180.04,6.23072131]
[1753863273387,3.08,180.11,180.05,3.22]
[1753863273686,3.08,180.11,180.06,5.5539]
[1753863273888,3.08,180.11,180.07,3.22]
[1753863274382,5.5525,180.11,180.07,5.5536]
[1753863274588,3.08,180.1,180.08,3.22]
[1753863274785,3.08,180.09,180.08,3.22]
[1753863274984,3.08,180.11,180.08,3.22]
[1753863275381,3.08,180.13,180.06,2.72721375]
[1753863275689,3.08,180.12,180.09,3.22]
[1753863276889,3.08,180.1,180.07,3.22]
[1753863277091,3.08,180.1,180.06,3.22]
[1753863277388,5.5532,180.09,180.06,3.22]
[1753863277682,3.08,180.07,180.06,3.22]
[1753863280293,3.08,180.07,180.06,8.7739]
[1753863280895,3.08,180.08,180.07,5.5535]
[1753863281086,3.08,180.1,180.04,6.23072131]
[1753863281594,3.08,180.1,180.09,8.773]
[1753863284093,3.08,180.1,180.04,3.50350756]
[1753863284293,2.72721375,180.13,180.08,3.22]
[1753863284492,3.08,180.09,180.08,3.22]
[1753863284996,3.08,180.11,180.08,3.22]
[1753863285593,8.27921375,180.13,180.08,5.5533]
[1753863285793,4.17328575,180.12,180.09,3.22]
[1753863285996,3.08,180.11,180.04,3.50350756]
[1753863286200,3.08,180.11,180.08,3.22]
[1753863286803,3.08,180.1,180.08,3.22]
[1753863288198,5.5522,180.12,180.08,3.22]
[1753863288403,3.08,180.1,180.09,3.22]
[1753863291412,3.08,180.1,180.04,3.50350756]
[1753863291413,3.22,180.1,180.05,3.12]
[1753863292094,3.22,180.1,180.07,3.12]
[1753863292300,5.5527,180.1,180.08,3.12]
[1753863292494,3.22,180.09,180.08,3.12]
[1753863292803,3.22,180.09,180.06,3.12]
[1753863292999,5.5534,180.08,180.06,3.12]
[1753863293303,3.22,180.07,180.06,3.12]
[1753863296408,3.22,180.07,180.05,3.12]
[1753863296608,3.22,180.06,180.05,3.12]
[1753863297306,3.22,180.06,180.04,3.50350756]
[1753863297502,3.22,180.06,180.04,6.62350756]
[1753863298708,3.22,180.06,180.04,12.17800756]
[1753863298907,3.22,180.06,180.04,6.62350756]
[1753863299108,2.72721375,180.07,180.04,9.05780756]
[1753863299412,3.22,180.05,180.04,9.05780756]
[1753863299810,3.22,180.05,180.04,12.17780756]
[1753863300212,3.22,180.05,180.04,6.62350756]
[1753863300618,5.94721375,180.05,180.04,3.50350756]
[1753863302608,5.94721375,180.05,180.04,6.62350756]
[1753863303716,5.94721375,180.05,180.04,3.50350756]
[1753863303915,5.94721375,180.05,180.04,6.62350756]
[1753863304712,3.22,180.05,180.04,6.62350756]
[1753863305017,2.72721375,180.12,180.06,3.12]
[1753863305214,5.5532,180.09,180.06,3.12]
[1753863305513,3.22,180.08,180.07,3.12]
[1753863305710,3.22,180.1,180.07,3.12]
[1753863305912,3.22,180.12,180.07,3.12]
[1753863306110,3.22,180.14,180.07,5.84721375]
[1753863306315,3.22,180.14,180.08,3.12]
[1753863307815,3.22,180.14,180.12,3.12]
[1753863308615,3.22,180.12,180.06,2.72721375]
[1753863309208,3.22,180.12,180.07,3.12]
[1753863309412,3.22,180.11,180.07,3.12]
[1753863310213,3.22,180.11,180.08,5.5533]
[1753863310409,3.22,180.12,180.09,3.12]
[1753863310612,3.22,180.1,180.05,3.12]
[1753863310817,3.22,180.1,180.08,3.12]
[1753863311113,8.7722,180.12,180.08,3.12]
[1753863311319,3.22,180.11,180.08,3.12]
[1753863311923,3.22,180.1,180.09,3.12]
[1753863312623,5.94721375,180.13,180.09,3.12]
[1753863312920,3.22,180.12,180.1,3.12]
[1753863313119,3.22,180.11,180.05,2.72721375]
[1753863313320,5.94721375,180.11,180.04,3.50350756]
[1753863313617,3.22,180.08,180.04,3.50350756]
[1753863313824,3.22,180.08,180.06,3.12]
[1753863314717,2.72721375,180.13,180.06,3.12]
[1753863314922,3.22,180.12,180.06,3.12]
[1753863315121,2.72721375,180.13,180.08,5.553]
[1753863315423,3.22,180.11,180.1,3.12]
[1753863315720,3.22,180.11,180.09,3.12]
[1753863315926,3.22,180.1,180.09,3.12]
[1753863317824,3.22,180.11,180.09,3.12]
[1753863318026,3.22,180.1,180.09,3.12]
[1753863321027,3.22,180.1,180.06,5.5538]
[1753863321230,3.22,180.09,180.08,3.12]
[1753863321528,3.22,180.11,180.08,3.12]
[1753863322120,3.22,180.13,180.08,3.12]
[1753863322430,3.22,180.12,180.08,3.12]
[1753863322631,3.22,180.12,180.08,5.5532]
[1753863322927,3.22,180.11,180.09,3.04]
[1753863323229,3.22,180.11,180.08,5.5532]
[1753863323423,3.22,180.11,180.1,3.04]
[1753863325130,8.7724,180.11,180.1,3.04]
[1753863325433,8.7725,180.11,180.09,3.04]
[1753863325631,3.22,180.1,180.09,3.04]
[1753863327128,8.7727,180.1,180.09,3.04]
[1753863327328,5.5527,180.1,180.04,6.23072131]
[1753863327529,3.22,180.09,180.08,3.04]
[1753863331427,3.22,180.09,180.04,6.54350756]
[1753863331632,3.22,180.06,180.04,3.50350756]
[1753863332638,5.5542,180.05,180.04,3.50350756]
[1753863332937,11.50141375,180.05,180.04,3.50350756]
[1753863335529,5.94721375,180.07,180.04,3.50350756]
[1753863335736,3.22,180.07,180.05,3.04]
[1753863335929,2.72721375,180.09,180.05,3.04]
[1753863336136,3.22,180.08,180.05,3.04]
[1753863336332,3.22,180.1,180.05,3.04]
[1753863336637,8.7727,180.1,180.05,5.5541]
[1753863336834,8.7727,180.1,180.04,3.50350756]
[1753863336835,3.22,180.1,180.04,3.50350756]
[1753863337034,4.56245338,180.14,180.04,3.50350756]
[1753863337035,3.22,180.08,180.06,3.04]
[1753863337337,5.5535,180.08,180.06,3.04]
[1753863337540,3.22,180.07,180.06,3.04]
[1753863338336,8.28031375,180.09,180.06,3.04]
[1753863338538,4.16381869,180.08,180.06,3.04]
[1753863338741,2.72721375,180.11,180.06,3.04]
[1753863339037,4.16390492,180.1,180.06,3.04]
[1753863339233,4.16390492,180.09,180.06,3.04]
[1753863339432,8.27981375,180.11,180.06,5.5538]
[1753863339640,7.3835382,180.1,180.07,3.04]
[1753863339837,4.1635382,180.09,180.07,3.04]
[1753863340035,3.22,180.08,180.05,3.04]
[1753863340633,3.22,180.07,180.06,3.04]
[1753863341447,3.22,180.09,180.06,3.04]
[1753863341745,3.22,180.1,180.06,3.04]
[1753863341933,8.27971375,180.11,180.06,3.04]
[1753863342342,8.7722,180.12,180.08,5.5532]
[1753863342540,8.7722,180.12,180.09,3.04]
[1753863343846,3.22,180.12,180.1,3.04]
[1753863344050,3.22,180.12,180.11,3.04]
[1753863344544,8.7721,180.12,180.11,3.04]
[1753863344745,3.22,180.12,180.05,3.04]
[1753863345144,3.22,180.1,180.08,3.04]
[1753863345348,3.22,180.1,180.09,3.04]
[1753863345947,3.22,180.08,180.07,3.04]
[1753863350050,2.72721375,180.12,180.07,3.04]
[1753863350355,3.22,180.11,180.07,3.04]
[1753863350653,3.22,180.1,180.07,3.04]
[1753863351052,3.22,180.11,180.08,3.04]
[1753863351451,5.5527,180.1,180.08,3.04]
[1753863351653,3.03,180.09,180.08,3.04]
[1753863352356,3.03,180.09,180.07,3.19]
[1753863352953,3.03,180.08,180.07,3.19]
[1753863353352,3.03,180.08,180.07,8.7436]
[1753863353654,3.03,180.08,180.07,3.19]
[1753863356058,3.03,180.08,180.07,8.7436]
[1753863356861,3.03,180.08,180.07,3.19]
[1753863358147,3.03,180.08,180.04,3.50350756]
[1753863358352,3.03,180.08,180.05,8.7441]
[1753863358549,8.5833,180.08,180.06,3.19]
[1753863358756,3.03,180.07,180.05,3.19]
[1753863359360,3.03,180.07,180.04,12.24780756]
[1753863360160,3.03,180.07,180.04,3.50350756]
[1753863360360,2.72721375,180.06,180.04,3.50350756]
[1753863360560,3.03,180.05,180.04,3.50350756]
[1753863361260,3.03,180.05,179.9,3.19]
[1753863361459,5.75721375,180.0,179.92,3.19]
[1753863361659,2.72721375,180.0,179.92,3.19]
[1753863361858,2.72721375,180.0,179.98,5.5563]
[1753863362059,2.72721375,180.0,179.99,3.19]
[1753863362260,5.75721375,180.0,179.99,3.19]
[1753863362460,2.72721375,180.0,179.92,3.19]
[1753863362662,3.03,179.99,179.92,3.19]
[1753863362862,3.03,179.97,179.92,3.19]
[1753863363162,2.72721375,179.94,179.88,3.19]
[1753863363365,5.75721375,179.94,179.88,3.19]
[1753863363766,5.75721375,179.94,179.84,2.72721375]
[1753863363952,5.75721375,179.94,179.91,3.19]
[1753863364354,2.72721375,179.94,179.84,2.72721375]
[1753863364565,3.03,179.93,179.92,3.19]
[1753863365062,3.03,179.93,179.82,373.34]
[1753863365263,5.75721375,179.92,179.85,3.19]
[1753863365469,5.75721375,179.92,179.88,5.5594]
[1753863365659,3.03,179.91,179.88,5.5594]
[1753863365860,3.03,179.91,179.9,3.19]
[1753863366266,2.72721375,179.92,179.89,5.5591]
[1753863366565,5.75721375,179.92,179.84,3.19]
[1753863366755,3.03,179.92,179.84,3.19]
[1753863366963,2.72721375,179.92,179.91,3.19]
[1753863367259,2.72721375,179.92,179.91,8.7485]
[1753863367455,2.72721375,179.94,179.91,3.19]
[1753863368062,2.72721375,179.94,179.87,2.72721375]
[1753863368063,2.72721375,179.94,179.93,3.19]
[1753863368261,3.03,179.93,179.9,3.19]
[1753863368664,3.03,179.93,179.86,3.19]
[1753863368968,2.72721375,179.94,179.86,3.19]
[1753863369165,3.03,180.05,179.88,3.19]
[1753863369365,3.03,179.97,179.88,3.19]
[1753863369567,5.75721375,179.96,179.94,8.7474]
[1753863369760,3.03,179.95,179.94,3.19]
[1753863370066,244.58,180.06,179.94,3.19]
[1753863370067,3.03,179.97,179.94,3.19]
[1753863370268,2.72721375,179.96,179.9,3.19]
[1753863370464,5.75721375,179.98,179.9,3.19]
[1753863371163,5.75721375,179.98,179.94,5.5574]
[1753863371364,3.03,179.97,179.95,3.19]
[1753863371566,249.21842834,180.08,179.83,11.122]
[1753863371567,5.75721375,180.01,179.96,3.19]
[1753863371765,5.75721375,180.03,179.96,3.19]
[1753863372273,5.75721375,180.03,180.0,5.5556]
[1753863372467,3.03,180.04,180.02,3.19]
[1753863372672,3.03,180.04,180.03,3.19]
[1753863372872,8.28171375,180.05,180.01,3.19]
[1753863373076,3.03,180.03,180.01,3.19]
[1753863373374,3.03,180.03,180.02,3.19]
[1753863373766,2.72721375,180.03,179.93,2.72721375]
[1753863373972,2.72721375,180.0,179.94,3.19]
[1753863374171,3.03,179.99,179.94,3.19]
[1753863374371,2.72721375,180.0,179.94,3.19]
[1753863374771,2.72721375,180.0,179.98,3.19]
[1753863374967,3.03,180.01,179.98,3.19]
[1753863375175,2.72721375,180.02,179.99,3.19]
[1753863375378,5.5558,180.0,179.96,5.5569]
[1753863375677,5.5558,180.0,179.94,3.19]
[1753863375678,3.03,179.99,179.94,3.19]
[1753863375876,2.72721375,180.0,179.97,5.5566]
[1753863376075,2.72721375,180.0,179.98,3.19]
[1753863376276,3.03,180.0,179.98,3.19]
[1753863376478,2.72721375,180.01,179.99,3.19]
[1753863376682,3.03,180.02,180.0,3.19]
[1753863376982,3.03,180.02,180.01,3.19]
[1753863378876,3.03,180.02,179.95,2.72721375]
[1753863379077,3.03,180.02,179.96,3.19]
[1753863379474,8.5852,180.02,179.98,5.5563]
[1753863379676,3.03,180.01,179.99,3.19]
[1753863379880,5.5552,180.02,180.01,3.19]
[1753863380076,8.5852,180.02,179.99,3.19]
[1753863380281,3.03,180.01,180.0,3.19]
[1753863380478,3.03,180.0,179.99,3.19]
[1753863380980,3.03,180.0,179.97,3.19]
[1753863381176,3.03,179.99,179.98,3.19]
[1753863381370,3.19,180.0,179.99,2.99]
[1753863381570,8.7458,180.0,179.99,2.99]
[1753863381779,8.7458,180.0,179.97,2.99]
[1753863381980,3.19,180.0,179.97,2.99]
[1753863382483,2.72721375,180.03,179.99,5.5559]
[1753863382682,8.28221375,180.03,179.95,2.72721375]
[1753863382882,3.19,180.02,180.01,2.99]
[1753863383279,2.72721375,180.03,180.01,2.99]
[1753863383478,2.72721375,180.03,180.0,2.99]
[1753863383677,5.91721375,180.03,180.0,2.99]
[1753863383885,3.19,180.03,179.97,2.72721375]
[1753863384083,3.19,180.04,179.98,2.99]
[1753863384785,3.19,180.03,180.0,2.99]
[1753863385179,3.19,180.03,180.02,2.99]
[1753863386301,5.91721375,180.09,180.03,2.99]
[1753863386578,12.08621699,180.08,180.03,2.99]
[1753863386786,7.91423112,180.07,180.03,2.99]
[1753863386981,3.19,180.08,180.05,8.5442]
[1753863387183,3.19,180.09,180.06,2.99]
[1753863387382,3.19,180.09,180.08,2.99]
[1753863388377,2.72721375,180.13,180.08,2.99]
[1753863388583,3.19,180.11,180.08,2.99]
[1753863388878,3.19,180.13,180.08,2.99]
[1753863389382,2.72721375,180.14,180.08,2.99]
[1753863389587,3.19,180.12,180.1,2.99]
[1753863389890,3.19,180.13,180.08,2.99]
[1753863390083,3.19,180.11,180.09,2.99]
[1753863390282,3.19,180.1,180.09,2.99]
[1753863391284,2.72721375,180.15,180.08,2.99]
[1753863391491,3.19,180.15,180.1,2.99]
[1753863391982,3.19,180.14,180.1,2.99]
[1753863392381,3.19,180.14,180.13,2.99]
[1753863392586,3.19,180.15,180.08,2.72721375]
[1753863392787,3.19,180.15,180.14,2.99]
[1753863393990,120.8,180.19,180.08,2.72721375]
[1753863393991,5.91721375,180.18,180.08,2.72721375]
[1753863394191,5.91721375,180.18,180.11,2.99]
[1753863394594,2.72721375,180.18,180.13,5.5515]
[1753863394788,3.19,180.17,180.14,2.99]
[1753863394994,3.19,180.16,180.15,2.99]
[1753863395488,2.72721375,180.18,180.1,2.72721375]
[1753863395489,120.8,180.19,180.11,2.99]
[1753863395694,2.72721375,180.2,180.11,2.99]
[1753863396088,2.72721375,180.2,180.15,5.5508]
[1753863396292,2.72721375,180.22,180.16,2.99]
[1753863396493,3.19,180.21,180.16,2.99]
[1753863396990,3.19,180.23,180.16,5.71721375]
[1753863397184,3.19,180.23,180.17,2.99]
[1753863397488,3.19,180.23,180.18,5.5502]
[1753863397699,3.19,180.23,180.19,2.99]
[1753863398293,3.19,180.22,180.2,2.99]
[1753863398497,3.19,180.22,180.21,2.99]
[1753863398694,5.91721375,180.26,180.19,2.99]
[1753863398894,3.19,180.26,180.19,2.99]
[1753863400094,3.19,180.25,180.19,2.99]
[1753863401094,2.72721375,180.25,180.19,2.99]
[1753863401298,8.7385,180.24,180.19,2.99]
[1753863401797,5.91721375,180.27,180.21,2.99]
[1753863402795,8.738,180.26,180.22,2.99]
[1753863402993,3.19,180.26,180.19,2.99]
[1753863403397,2.72721375,180.25,180.19,2.99]
[1753863403800,3.19,180.23,180.19,2.99]
[1753863404803,8.7387,180.23,180.19,2.99]
[1753863405099,3.19,180.2,180.14,2.99]
[1753863405493,3.19,180.18,180.12,2.99]
[1753863405897,3.19,180.18,180.13,5.5517]
[1753863406104,3.19,180.18,180.14,2.99]
[1753863406308,2.72721375,180.17,180.09,5.71721375]
[1753863406598,120.46,180.23,180.08,373.3]
[1753863406599,3.19,180.14,180.08,373.3]
[1753863406804,3.19,180.14,180.1,2.99]
[1753863407403,3.19,180.14,180.1,5.5525]
[1753863407701,120.46,180.23,180.07,146.47968155]
[1753863407702,2.72721375,180.17,180.13,2.99]
[1753863407900,5.91721375,180.17,180.14,2.99]
[1753863408095,5.91721375,180.17,180.15,2.99]
[1753863408293,5.91721375,180.17,180.14,8.5414]
[1753863408500,5.91721375,180.21,180.15,2.99]
[1753863409003,3.19,180.23,180.19,2.99]
[1753863409205,3.19,180.23,180.18,5.5502]
[1753863409397,3.19,180.23,180.21,2.99]
[1753863410001,3.19,180.25,180.17,2.72721375]
[1753863410202,3.19,180.25,180.23,2.99]
[1753863410500,123.63,180.26,180.24,2.99]
[1753863410804,3.19,180.25,180.2,2.99]
[1753863410995,3.19,180.24,180.21,2.99]
[1753863411197,3.19,180.22,180.18,2.99]
[1753863411396,3.02,180.2,180.18,2.99]
[1753863411696,3.02,180.19,180.18,2.99]
[1753863412097,3.02,180.19,180.14,5.5512]
[1753863412294,3.02,180.19,180.16,3.11]
[1753863412606,3.02,180.19,180.14,5.5512]
[1753863412908,3.02,180.2,180.18,3.11]
[1753863413105,3.02,180.19,180.18,3.11]
[1753863414104,3.02,180.2,180.18,3.11]
[1753863415805,3.02,180.2,180.17,3.11]
[1753863416007,3.02,180.2,180.18,3.11]
[1753863416910,3.02,180.2,180.19,3.11]
[1753863417206,10.02173388,180.21,180.17,3.11]
[1753863417408,3.02,180.2,180.18,3.11]
[1753863418403,5.5496,180.2,180.15,5.551]
[1753863418608,3.02,180.18,180.11,4.47233388]
[1753863418806,5.5496,180.2,180.17,3.11]
[1753863419004,3.02,180.19,180.17,3.11]
[1753863419605,10.02163388,180.21,180.16,5.5508]
[1753863419905,3.02,180.2,180.11,3.11]
[1753863420105,7.49233388,180.21,180.11,3.11]
[1753863420496,3.02,180.2,180.11,3.11]
[1753863420806,8.5697,180.2,180.11,3.11]
[1753863421105,3.02,180.18,180.11,3.11]
[1753863421311,4.47233388,180.17,180.11,3.11]
[1753863421807,4.47233388,180.17,180.15,5.5511]
[1753863422106,3.02,180.18,180.17,3.11]
[1753863422505,3.02,180.18,180.14,5.5514]
[1753863422705,3.02,180.16,180.15,3.11]
[1753863422901,3.02,180.18,180.16,3.11]
[1753863423106,3.02,180.18,180.14,5.5514]
[1753863423306,3.02,180.18,180.17,3.11]
[1753863423608,4.47233388,180.19,180.09,3.11]
[1753863424313,4.47233388,180.19,180.08,4.47233388]
[1753863424314,3.02,180.18,180.15,5.5509]
[1753863424512,3.02,180.18,180.17,3.11]
[1753863429012,4.47233388,180.19,180.17,3.11]
[1753863429314,3.02,180.22,180.13,3.11]
[1753863429507,16.38588462,180.21,180.13,3.11]
[1753863429707,8.9601329,180.2,180.17,5.5503]
[1753863429909,4.7825628,180.19,180.18,3.11]
[1753863430310,5.5487,180.23,180.19,5.5498]
[1753863430510,16.3908552,180.22,180.2,3.11]
[1753863430811,4.78291283,180.21,180.2,3.11]
[1753863431117,7.57842834,180.27,180.24,3.11]
[1753863431409,12.2099207,180.26,180.25,8.6581]
[1753863432109,3.02,180.3,180.29,3.11]
[1753863432313,12.31545617,180.3,180.23,4.47233388]
[1753863432612,4.71301942,180.29,180.28,5.5471]
[1753863432915,3.02,180.35,180.27,2.7415914]
[1753863433119,3.02,180.33,180.28,3.11]
[1753863433317,4.71513806,180.32,180.28,3.11]
[1753863433511,3.02,180.31,180.29,3.11]
[1753863433816,3.02,180.3,180.29,3.11]
[1753863434015,8.2875914,180.32,180.29,3.11]
[1753863434211,4.71285851,180.31,180.3,3.11]
[1753863434818,5.7615914,180.34,180.3,3.11]
[1753863435013,8.89463326,180.33,180.3,3.11]
[1753863435213,2.7415914,180.34,180.3,5.5463]
[1753863435410,7.72975949,180.33,180.3,5.5463]
[1753863435616,7.30001974,180.38,180.32,3.11]
[1753863435917,19.34476748,180.37,180.32,3.11]
[1753863436219,120.28,180.39,180.32,3.11]
[1753863436220,17.45555898,180.36,180.32,3.11]
[1753863436418,4.70978115,180.35,180.32,3.11]
[1753863436623,3.02,180.38,180.32,3.11]
[1753863436817,24.87836718,180.37,180.34,3.11]
[1753863437016,4.70676521,180.36,180.35,3.11]
[1753863437414,120.28,180.39,180.35,3.11]
[1753863437613,4.70488671,180.38,180.35,3.11]
[1753863437810,3.02,180.38,180.33,2.7415914]
[1753863438011,7.72464792,180.37,180.32,3.11]
[1753863438210,3.02,180.37,180.32,3.11]
[1753863438522,123.0215914,180.39,180.34,3.11]
[1753863438828,4.55842834,180.46,180.38,3.11]
[1753863439118,4.70201185,180.45,180.43,5.5425]
[1753863439317,5.5407,180.49,180.44,3.11]
[1753863439625,8.5614,180.47,180.45,3.11]
[1753863439818,3.02,180.46,180.45,3.11]
[1753863440010,3.02,180.48,180.41,2.7415914]
[1753863440214,4.6977183,180.47,180.46,3.11]
[1753863440523,3.02,180.48,180.47,3.11]
[1753863440822,4.69345053,180.48,180.47,3.11]
[1753863441522,4.69345053,180.48,180.42,4.46085685]
[1753863441523,3.24,180.51,180.49,3.05]
[1753863441724,16.23761708,180.5,180.49,3.05]
[1753863441923,4.68811178,180.5,180.49,3.05]
[1753863442325,7.92811178,180.5,180.49,3.05]
[1753863442623,3.24,180.5,180.49,3.05]
[1753863443520,3.24,180.5,180.46,3.05]
[1753863443826,5.5406,180.5,180.47,3.05]
[1753863444124,3.24,180.49,180.43,3.05]
[1753863444326,5.5404,180.5,180.45,5.5419]
[1753863444628,5.5404,180.5,180.46,3.05]
[1753863444818,3.24,180.52,180.46,3.05]
[1753863445014,5.5401,180.51,180.46,3.05]
[1753863445216,3.24,180.5,180.47,3.05]
[1753863445515,120.2,180.53,180.47,3.05]
[1753863445826,3.24,180.57,180.5,3.05]
[1753863446122,4.67286523,180.56,180.5,3.05]
[1753863446333,3.24,180.57,180.5,3.05]
[1753863448217,5.5389,180.55,180.5,3.05]
[1753863448423,8.7789,180.55,180.5,3.05]
[1753863448617,3.24,180.53,180.49,3.05]
[1753863449020,4.46085685,180.54,180.49,3.05]
[1753863449225,3.24,180.55,180.46,4.46085685]
[1753863449420,3.24,180.55,180.47,3.05]
[1753863450623,3.24,180.53,180.44,3.05]
[1753863450826,3.24,180.51,180.44,3.05]
[1753863451327,4.46085685,180.52,180.44,3.05]
[1753863451524,5.5401,180.51,180.46,5.5415]
[1753863451727,5.5401,180.51,180.47,3.05]
[1753863452228,8.7801,180.51,180.47,3.05]
[1753863453229,3.24,180.49,180.48,3.05]
[1753863453830,3.24,180.49,180.43,3.05]
[1753863454032,4.46085685,180.49,180.43,3.05]
[1753863454234,3.24,180.51,180.48,3.05]
[1753863454525,3.24,180.51,180.5,3.05]
[1753863454929,3.24,180.55,180.47,3.05]
[1753863455130,3.24,180.58,180.49,3.05]
[1753863455330,4.11459933,180.57,180.49,3.05]
[1753863455526,3.24,180.58,180.49,3.05]
[1753863455930,5.5386,180.56,180.52,5.5397]
[1753863456134,5.5386,180.56,180.49,3.05]
[1753863456538,8.7789,180.55,180.52,3.05]
[1753863456739,3.24,180.55,180.53,3.05]
[1753863457035,3.24,180.55,180.49,3.05]
[1753863457236,8.7786,180.56,180.52,3.05]
[1753863457438,3.24,180.56,180.52,3.05]
[1753863457640,3.24,180.58,180.52,3.05]
[1753863458534,3.24,180.56,180.53,3.05]
[1753863459236,4.46085685,180.57,180.49,3.05]
[1753863459438,3.24,180.54,180.45,3.05]
[1753863460241,8.7794,180.54,180.49,5.5405]
[1753863460440,3.24,180.51,180.5,3.05]
[1753863460628,3.24,180.51,180.44,4.46085685]
[1753863460835,3.24,180.51,180.49,3.05]
[1753863461235,3.24,180.51,180.5,3.05]
[1753863463141,3.24,180.5,180.41,3.05]
[1753863463342,3.24,180.45,180.38,3.05]
[1753863463536,5.5423,180.44,180.38,3.05]
[1753863464247,4.46085685,180.49,180.39,3.05]
[1753863464444,4.09611359,180.48,180.39,3.05]
[1753863464643,3.24,180.48,180.45,3.05]
[1753863464942,3.24,180.48,180.39,3.05]
[1753863465139,5.5426,180.43,180.39,3.05]
[1753863465445,3.24,180.43,180.39,3.05]
[1753863466439,3.24,180.42,180.35,7.51085685]